fUSD/lending_fUSD_20240215
["ID","MTS","AMOUNT","RATE_DAILY","PERIOD"]
[314080656,1707963047925,-2422.19,0.00035616,7]
[314080657,1707963047937,-158.89541047,0.00035616,7]
[314080658,1707963047946,-500.0,0.00035616,7]
[314080659,1707963047955,-500.0,0.00035616,7]
[314080660,1707963047964,-500.0,0.00035616,7]
[314080661,1707963047974,-527.16355375,0.00035616,7]
[314080662,1707963047984,-636.56652055,0.00035616,7]
[314080663,1707963047993,-500.0,0.00035616,7]
[314080664,1707963048002,-522.31850375,0.00035616,7]
[314080665,1707963048012,-500.0,0.00035616,7]
[314080666,1707963048021,-500.0,0.00035616,7]
[314080667,1707963048031,-500.0,0.00035616,7]
[314080668,1707963048040,-536.45306161,0.00035616,7]
[314080669,1707963048049,-10000.0,0.00035616,7]
[314080670,1707963048058,-500.0,0.00035616,7]
[314080671,1707963048068,-500.0,0.00035616,7]
[314080672,1707963048077,-500.0,0.00035616,7]
[314080673,1707963048086,-525.33153705,0.00035616,7]
[314080674,1707963048096,-10000.0,0.00035616,7]
[314080675,1707963048105,-500.0,0.00035616,7]
[314080676,1707963048114,-520.94438638,0.00035616,7]
[314080677,1707963048123,-535.58096977,0.00035616,7]
[314080678,1707963048133,-500.0,0.00035616,7]
[314080679,1707963048142,-500.0,0.00035616,7]
[314080680,1707963048151,-500.0,0.00035616,7]
[314080681,1707963048161,-530.92753383,0.00035616,7]
[314080682,1707963048170,-500.0,0.00035616,7]
[314080683,1707963048181,-500.0,0.00035616,7]
[314080684,1707963048190,-526.04140866,0.00035616,7]
[314080685,1707963048199,-509.39947936,0.00035616,7]
[314080686,1707963048208,-515.78070298,0.00035616,7]
[314080687,1707963048217,-500.0,0.00035616,7]
[314080688,1707963048226,-500.0,0.00035616,7]
[314080689,1707963048235,-511.33637217,0.00035616,7]
[314080690,1707963048245,-500.0,0.00035616,7]
[314080691,1707963048254,-500.0,0.00035616,7]
[314080692,1707963048263,-500.0,0.00035616,7]
[314080693,1707963048272,-534.58195182,0.00035616,7]
[314080694,1707963048282,-500.0,0.00035616,7]
[314080695,1707963048291,-500.0,0.00035616,7]
[314080696,1707963048302,-527.20551868,0.00035616,7]
[314080697,1707963048313,-535.8,0.00035616,7]
[314080698,1707963048323,-512.86839764,0.00035616,7]
[314080699,1707963048333,-500.0,0.00035616,7]
[314080700,1707963048342,-510.27692783,0.00035616,7]
[314080701,1707963048354,-500.0,0.00035616,7]
[314080702,1707963048363,-500.0,0.00035616,7]
[314080703,1707963048373,-500.0,0.00035616,7]
[314080704,1707963048383,-500.0,0.00035616,7]
[314080705,1707963048392,-504.17772375,0.00035616,7]
[314080706,1707963048402,-560.96850886,0.00035616,7]
[314080707,1707963048411,-520.44533901,0.00035616,7]
[314080708,1707963048421,-500.0,0.00035616,7]
[314080709,1707963048432,-500.0,0.00035616,7]
[314080710,1707963048442,-500.0,0.00035616,7]
[314080711,1707963048451,-1000.0,0.00035616,7]
[314080712,1707963048460,-500.0,0.00035616,7]
[314080713,1707963048470,-500.0,0.00035616,7]
[314080714,1707963048480,-508.75386279,0.00035616,7]
[314080715,1707963048489,-500.0,0.00035616,7]
[314080716,1707963048499,-507.90824982,0.00035616,7]
[314080717,1707963048508,-500.0,0.00035616,7]
[314080718,1707963048518,-500.0,0.00035616,7]
[314080719,1707963048527,-500.0,0.00035616,7]
[314080720,1707963048536,-500.0,0.00035616,2]
[314080721,1707963048546,-500.0,0.00035616,7]
[314080722,1707963048555,-500.0,0.00035616,7]
[314080723,1707963048566,-531.70867722,0.00035616,7]
[314080724,1707963048576,-500.0,0.00035616,7]
[314080725,1707963048585,-500.0,0.00035616,7]
[314080726,1707963048594,-500.0,0.00035616,7]
[314080727,1707963048604,-500.0,0.00035616,7]
[314080728,1707963048613,-505.28983493,0.00035616,7]
[314080729,1707963048622,-500.0,0.00035616,7]
[314080730,1707963048631,-500.0,0.00035616,7]
[314080731,1707963048640,-508.01398748,0.00035616,7]
[314080732,1707963048649,-500.0,0.00035616,7]
[314080733,1707963048658,-500.0,0.00035616,7]
[314080734,1707963048667,-528.03987453,0.00035616,7]
[314080735,1707963048678,-500.0,0.00035616,7]
[314080736,1707963048687,-500.0,0.00035616,7]
[314080737,1707963048697,-500.0,0.00035616,7]
[314080738,1707963048706,-500.0,0.00035616,7]
[314080739,1707963048715,-500.0,0.00035616,7]
[314080740,1707963048724,-500.0,0.00035616,7]
[314080741,1707963048733,-500.0,0.00035616,7]
[314080742,1707963048743,-549.86567395,0.00035616,7]
[314080743,1707963048752,-461.31717773,0.00035616,7]
[314080744,1707963048762,-3295.5,0.000357,7]
[314080745,1707963048771,-301.11,0.000357,7]
[314080746,1707963048780,-1883.69487439,0.00035703,2]
[314080747,1707963048790,-5747.19842254,0.00035703,2]
[314080748,1707963048799,-900.28324645,0.00035737,7]
[314080749,1707963048809,-1000.0,0.000358,4]
[314080750,1707963048818,-155.45223204,0.00035815,2]
[314080751,1707963048827,-373.56967701,0.0003589,7]
[314080752,1707963048837,-609.10154586,0.0003589,7]
[314080753,1707963048847,-151.99329263,0.0003589,7]
[314080754,1707963048856,-642.44648041,0.0003589,7]
[314080755,1707963048866,-500.0,0.0003589,7]
[314080756,1707963048875,-500.0,0.0003589,7]
[314080757,1707963048884,-500.0,0.0003589,7]
[314080758,1707963048893,-500.0,0.0003589,7]
[314080759,1707963048903,-500.0,0.0003589,7]
[314080760,1707963048912,-500.0,0.0003589,7]
[314080761,1707963048921,-500.0,0.0003589,2]
[314080762,1707963048931,-500.0,0.0003589,7]
[314080763,1707963048940,-500.0,0.0003589,7]
[314080764,1707963048949,-500.0,0.0003589,7]
[314080765,1707963048958,-500.0,0.0003589,7]
[314080766,1707963048968,-500.0,0.0003589,7]
[314080767,1707963048977,-500.0,0.0003589,7]
[314080768,1707963048986,-500.0,0.0003589,7]
[314080769,1707963048996,-500.0,0.0003589,7]
[314080770,1707963049005,-648.10808523,0.0003589,7]
[314080771,1707963049015,-500.0,0.0003589,7]
[314080772,1707963049024,-553.595843,0.0003589,7]
[314080773,1707963049033,-500.0,0.0003589,7]
[314080774,1707963049043,-500.0,0.0003589,7]
[314080775,1707963049053,-500.0,0.0003589,7]
[314080776,1707963049062,-547.86,0.0003589,7]
[314080777,1707963049071,-168.86447282,0.0003589,7]
[314080778,1707963049080,-266.3285269,0.0003589,7]
[314080779,1707963049089,-500.0,0.0003589,7]
[314080780,1707963049098,-586.16137636,0.0003589,7]
[314080781,1707963049107,-602.98371002,0.0003589,2]
[314080782,1707963049117,-621.50670025,0.0003589,7]
[314080783,1707963049127,-500.0,0.0003589,7]
[314080784,1707963049136,-500.0,0.0003589,7]
[314080785,1707963049146,-500.0,0.0003589,7]
[314080786,1707963049156,-500.0,0.0003589,7]
[314080787,1707963049166,-611.38543543,0.0003589,7]
[314080788,1707963049176,-500.0,0.0003589,7]
[314080789,1707963049189,-500.0,0.0003589,7]
[314080790,1707963049199,-500.0,0.0003589,7]
[314080791,1707963049208,-641.68532853,0.0003589,7]
[314080792,1707963049218,-500.0,0.0003589,7]
[314080793,1707963049228,-583.05,0.0003589,7]
[314080794,1707963049238,-500.0,0.0003589,7]
[314080795,1707963049248,-541.58130106,0.0003589,7]
[314080796,1707963049257,-640.71334413,0.0003589,7]
[314080797,1707963049267,-500.0,0.0003589,7]
[314080798,1707963049276,-500.0,0.0003589,7]
[314080799,1707963049286,-500.0,0.0003589,7]
[314080800,1707963049295,-500.0,0.0003589,7]
[314080801,1707963049306,-500.0,0.0003589,7]
[314080802,1707963049315,-500.0,0.0003589,7]
[314080803,1707963049328,-500.0,0.0003589,7]
[314080804,1707963049338,-500.0,0.0003589,7]
[314080805,1707963049348,-500.0,0.0003589,7]
[314080806,1707963049358,-578.18745555,0.0003589,7]
[314080807,1707963049370,-500.0,0.0003589,7]
[314080808,1707963049484,-500.0,0.0003589,7]
[314080809,1707963049495,-500.0,0.0003589,7]
[314080810,1707963049504,-500.0,0.0003589,7]
[314080811,1707963049514,-500.0,0.0003589,7]
[314080812,1707963049523,-529.86751901,0.0003589,7]
[314080813,1707963049532,-580.36491877,0.0003589,7]
[314080814,1707963049541,-500.0,0.0003589,7]
[314080815,1707963049551,-500.0,0.0003589,7]
[314080816,1707963049559,-535.54567942,0.0003589,7]
[314080817,1707963049568,-500.0,0.0003589,7]
[314080818,1707963049577,-505.17198028,0.0003589,7]
[314080819,1707963049587,-500.0,0.0003589,7]
[314080820,1707963049596,-310.04548174,0.0003589,7]
[314080821,1707963049605,-515.35573147,0.0003589,7]
[314080822,1707963049614,-175.89797385,0.0003589,7]
[314080823,1707963049623,-150.0,0.0003589,7]
[314080824,1707963049631,-500.0,0.0003589,7]
[314080825,1707963049640,-500.0,0.0003589,7]
[314080826,1707963049649,-500.0,0.0003589,7]
[314080827,1707963049658,-530.0230999,0.0003589,7]
[314080828,1707963049667,-608.75008527,0.0003589,7]
[314080829,1707963049676,-500.0,0.0003589,7]
[314080830,1707963049687,-500.0,0.0003589,7]
[314080831,1707963049696,-508.33411622,0.0003589,7]
[314080832,1707963049705,-500.0,0.0003589,7]
[314080833,1707963049714,-500.0,0.0003589,7]
[314080834,1707963049724,-517.13846607,0.0003589,7]
[314080835,1707963049733,-523.17123724,0.0003589,7]
[314080836,1707963049742,-518.50393555,0.0003589,7]
[314080837,1707963049751,-613.5239446,0.0003589,7]
[314080838,1707963049760,-508.62807195,0.0003589,7]
[314080839,1707963049768,-500.0,0.0003589,7]
[314080840,1707963049777,-500.0,0.0003589,7]
[314080841,1707963049786,-486.38369617,0.0003589,7]
[314080842,1707963049795,-507.76863399,0.0003589,7]
[314080843,1707963049804,-500.0,0.0003589,7]
[314080844,1707963049813,-366.15741505,0.0003589,7]
[314080845,1707963049822,-523.49911342,0.0003589,7]
[314080846,1707963049831,-502.14701317,0.0003589,7]
[314080847,1707963049840,-500.0,0.0003589,7]
[314080848,1707963049849,-500.0,0.0003589,7]
[314080849,1707963049858,-541.11196371,0.0003589,7]
[314080850,1707963049867,-506.48182621,0.0003589,7]
[314080851,1707963049875,-556.62312727,0.0003589,7]
[314080852,1707963049885,-513.64108635,0.0003589,7]
[314080853,1707963049893,-500.0,0.0003589,7]
[314080854,1707963049902,-234.69650725,0.0003589,7]
[314080855,1707963049911,-521.69923625,0.0003589,7]
[314080856,1707963049920,-500.0,0.0003589,7]
[314080857,1707963049931,-517.17122677,0.0003589,7]
[314080858,1707963049940,-500.0,0.0003589,7]
[314080859,1707963049949,-500.0,0.0003589,7]
[314080860,1707963049958,-500.0,0.0003589,7]
[314080861,1707963049967,-227.49913039,0.0003589,7]
[314080862,1707963049976,-574.9764823,0.0003589,7]
[314080863,1707963049985,-428.28693672,0.0003589,7]
[314080864,1707963049994,-160.139379,0.0003589,7]
[314080865,1707963050003,-500.0,0.0003589,7]
[314080866,1707963050012,-361.1822182,0.0003589,7]
[314080867,1707963050021,-500.0,0.0003589,7]
[314080868,1707963050030,-500.0,0.0003589,7]
[314080869,1707963050039,-500.0,0.0003589,7]
[314080870,1707963050049,-528.03317239,0.0003589,7]
[314080871,1707963050058,-500.0,0.0003589,7]
[314080872,1707963050068,-513.72664681,0.0003589,7]
[314080873,1707963050077,-500.0,0.0003589,7]
[314080874,1707963050086,-605.25153489,0.0003589,7]
[314080875,1707963050095,-640.79859323,0.0003589,7]
[314080876,1707963050105,-500.0,0.0003589,7]
[314080877,1707963050114,-525.91241829,0.0003589,7]
[314080878,1707963050123,-500.0,0.0003589,7]
[314080879,1707963050131,-500.0,0.0003589,7]
[314080880,1707963050140,-500.0,0.0003589,7]
[314080881,1707963050149,-530.89606413,0.0003589,7]
[314080882,1707963050159,-527.02311833,0.0003589,7]
[314080883,1707963050168,-500.0,0.0003589,7]
[314080884,1707963050177,-500.0,0.0003589,7]
[314080885,1707963050188,-524.81605623,0.0003589,7]
[314080886,1707963050197,-516.42084064,0.0003589,7]
[314080887,1707963050206,-323.11271249,0.0003589,7]
[314080888,1707963050215,-500.0,0.0003589,7]
[314080889,1707963050224,-325.6805572,0.0003589,7]
[314080890,1707963050233,-539.89645641,0.0003589,7]
[314080891,1707963050242,-526.98757054,0.0003589,7]
[314080892,1707963050252,-519.24028704,0.0003589,7]
[314080893,1707963050261,-500.0,0.0003589,7]
[314080894,1707963050270,-500.0,0.0003589,7]
[314080895,1707963050279,-500.0,0.0003589,7]
[314080896,1707963050288,-500.0,0.0003589,7]
[314080897,1707963050297,-219.33591749,0.0003589,7]
[314080898,1707963050308,-500.0,0.0003589,7]
[314080899,1707963050319,-500.0,0.0003589,7]
[314080900,1707963050328,-525.89556424,0.0003589,7]
[314080901,1707963050338,-500.0,0.0003589,7]
[314080902,1707963050347,-500.0,0.0003589,7]
[314080903,1707963050358,-500.0,0.0003589,7]
[314080904,1707963050367,-500.0,0.0003589,7]
[314080905,1707963050377,-960.6,0.0003589,7]
[314080906,1707963050388,-500.0,0.0003589,7]
[314080907,1707963050398,-531.92876867,0.0003589,7]
[314080908,1707963050408,-525.93389783,0.0003589,7]
[314080909,1707963050417,-508.97939475,0.0003589,7]
[314080910,1707963050427,-529.28924293,0.0003589,7]
[314080911,1707963050438,-524.90951859,0.0003589,7]
[314080912,1707963050448,-529.76061083,0.0003589,7]
[314080913,1707963050457,-525.20167566,0.0003589,7]
[314080914,1707963050467,-531.29070927,0.0003589,7]
[314080915,1707963050477,-485.19936003,0.0003589,7]
[314080916,1707963050486,-500.0,0.0003589,7]
[314080917,1707963050495,-550.3086389,0.0003589,7]
[314080918,1707963050505,-500.0,0.0003589,7]
[314080919,1707963050515,-504.03768573,0.0003589,7]
[314080920,1707963050525,-1581.16,0.0003589,7]
[314080921,1707963050534,-500.0,0.0003589,7]
[314080922,1707963050543,-517.19237078,0.0003589,7]
[314080923,1707963050552,-176.40013662,0.0003589,7]
[314080924,1707963050562,-500.0,0.0003589,7]
[314080925,1707963050571,-500.0,0.0003589,7]
[314080926,1707963050581,-519.7698045,0.0003589,7]
[314080927,1707963050589,-526.01316292,0.0003589,7]
[314080928,1707963050598,-500.0,0.0003589,7]
[314080929,1707963050608,-378.24209355,0.0003589,7]
[314080930,1707963050618,-519.94743154,0.0003589,7]
[314080931,1707963050628,-500.0,0.0003589,7]
[314080932,1707963050637,-500.0,0.0003589,7]
[314080933,1707963050646,-531.9187783,0.0003589,7]
[314080934,1707963050655,-500.0,0.0003589,7]
[314080935,1707963050665,-520.72234652,0.0003589,7]
[314080936,1707963050674,-517.55564951,0.0003589,7]
[314080937,1707963050685,-500.0,0.0003589,7]
[314080938,1707963050694,-506.9785986,0.0003589,7]
[314080939,1707963050703,-500.0,0.0003589,7]
[314080940,1707963050713,-500.0,0.0003589,7]
[314080941,1707963050722,-500.0,0.0003589,7]
[314080942,1707963050731,-523.65063356,0.0003589,7]
[314080943,1707963050740,-548.47279087,0.0003589,7]
[314080944,1707963050749,-500.0,0.0003589,7]
[314080945,1707963050759,-500.0,0.0003589,7]
[314080946,1707963050768,-500.0,0.0003589,7]
[314080947,1707963050777,-500.0,0.0003589,7]
[314080948,1707963050787,-519.88331949,0.0003589,7]
[314080949,1707963050796,-500.0,0.0003589,7]
[314080950,1707963050806,-2037.84,0.0003589,7]
[314080951,1707963050815,-580.84190245,0.0003589,7]
[314080952,1707963050825,-500.0,0.0003589,7]
[314080953,1707963050835,-470.09,0.0003589,7]
[314080954,1707963050845,-500.0,0.0003589,7]
[314080955,1707963050854,-519.91470968,0.0003589,7]
[314080956,1707963050865,-500.0,0.0003589,7]
[314080957,1707963050875,-500.0,0.0003589,7]
[314080958,1707963050884,-500.0,0.0003589,7]
[314080959,1707963050894,-500.0,0.0003589,7]
[314080960,1707963050903,-500.0,0.0003589,7]
[314080961,1707963050912,-525.61870836,0.0003589,7]
[314080962,1707963050922,-508.04047026,0.0003589,7]
[314080963,1707963050932,-500.0,0.0003589,7]
[314080964,1707963050942,-478.90997492,0.0003589,7]
[314080965,1707963050951,-508.75575623,0.0003589,7]
[314080966,1707963050960,-500.0,0.0003589,7]
[314080967,1707963050970,-500.0,0.0003589,7]
[314080968,1707963050979,-518.3952076,0.0003589,7]
[314080969,1707963050988,-500.0,0.0003589,7]
[314080970,1707963050997,-500.0,0.0003589,7]
[314080971,1707963051006,-210.32915224,0.0003589,7]
[314080972,1707963051015,-500.0,0.0003589,7]
[314080973,1707963051025,-500.0,0.0003589,7]
[314080974,1707963051034,-500.0,0.0003589,7]
[314080975,1707963051043,-500.0,0.0003589,7]
[314080976,1707963051052,-500.0,0.0003589,7]
[314080977,1707963051062,-500.0,0.0003589,7]
[314080978,1707963051071,-500.0,0.0003589,7]
[314080979,1707963051080,-513.91031969,0.0003589,7]
[314080980,1707963051090,-500.0,0.0003589,7]
[314080981,1707963051099,-500.0,0.0003589,7]
[314080982,1707963051108,-500.0,0.0003589,7]
[314080983,1707963051117,-500.0,0.0003589,7]
[314080984,1707963051126,-566.31315804,0.0003589,7]
[314080985,1707963051135,-521.11424411,0.0003589,7]
[314080986,1707963051144,-500.0,0.0003589,7]
[314080987,1707963051153,-572.63974245,0.0003589,7]
[314080988,1707963051162,-500.0,0.0003589,7]
[314080989,1707963051172,-500.0,0.0003589,7]
[314080990,1707963051182,-514.79904498,0.0003589,7]
[314080991,1707963051190,-228.29611074,0.0003589,7]
[314080992,1707963051199,-770.42,0.0003589,7]
[314080993,1707963051208,-1096.71,0.0003589,7]
[314080994,1707963051218,-1081.2,0.0003589,7]
[314080995,1707963051228,-622.58977412,0.0003589,7]
[314080996,1707963051237,-545.24981574,0.0003589,7]
[314080997,1707963051247,-500.0,0.0003589,7]
[314080998,1707963051256,-500.0,0.0003589,7]
[314080999,1707963051266,-500.0,0.0003589,7]
[314081000,1707963051275,-500.0,0.0003589,7]
[314081001,1707963051284,-500.0,0.0003589,7]
[314081002,1707963051294,-500.0,0.0003589,7]
[314081003,1707963051304,-414.59066216,0.0003589,7]
[314081004,1707963051313,-500.0,0.0003589,7]
[314081005,1707963051325,-500.0,0.0003589,7]
[314081006,1707963051334,-500.0,0.0003589,7]
[314081007,1707963051343,-500.0,0.0003589,7]
[314081008,1707963051354,-500.0,0.0003589,7]
[314081009,1707963051363,-500.0,0.0003589,7]
[314081010,1707963051372,-500.0,0.0003589,7]
[314081011,1707963051382,-500.0,0.0003589,7]
[314081012,1707963051391,-500.0,0.0003589,7]
[314081013,1707963051402,-500.0,0.0003589,7]
[314081014,1707963051412,-500.0,0.0003589,7]
[314081015,1707963051421,-500.0,0.0003589,7]
[314081016,1707963051430,-500.0,0.0003589,7]
[314081017,1707963051440,-500.0,0.0003589,7]
[314081018,1707963051450,-500.0,0.0003589,7]
[314081019,1707963051459,-500.0,0.0003589,7]
[314081020,1707963051470,-500.0,0.0003589,7]
[314081021,1707963051479,-520.05,0.0003589,7]
[314081022,1707963051489,-500.0,0.0003589,7]
[314081023,1707963051498,-918.55,0.0003589,7]
[314081024,1707963051508,-500.0,0.0003589,7]
[314081025,1707963051519,-500.0,0.0003589,7]
[314081026,1707963051528,-500.0,0.0003589,7]
[314081027,1707963051538,-500.0,0.0003589,7]
[314081028,1707963051547,-500.0,0.0003589,7]
[314081029,1707963051557,-500.0,0.0003589,7]
[314081030,1707963051567,-476.9124901,0.0003589,7]
[314081031,1707963051577,-500.0,0.0003589,7]
[314081032,1707963051586,-500.0,0.0003589,7]
[314081033,1707963051596,-500.0,0.0003589,7]
[314081034,1707963051605,-500.0,0.0003589,7]
[314081035,1707963051614,-500.0,0.0003589,7]
[314081036,1707963051623,-500.0,0.0003589,7]
[314081037,1707963051632,-500.0,0.0003589,7]
[314081038,1707963051641,-230.30447604,0.0003589,7]
[314081039,1707963051650,-500.0,0.0003589,7]
[314081040,1707963051659,-500.0,0.0003589,7]
[314081041,1707963051669,-500.0,0.0003589,7]
[314081042,1707963051678,-500.0,0.0003589,7]
[314081043,1707963051687,-500.0,0.0003589,7]
[314081044,1707963051696,-500.0,0.0003589,7]
[314081045,1707963051705,-500.0,0.0003589,7]
[314081046,1707963051714,-500.0,0.0003589,7]
[314081047,1707963051723,-500.0,0.0003589,7]
[314081048,1707963051733,-500.0,0.0003589,7]
[314081049,1707963051742,-500.0,0.0003589,7]
[314081050,1707963051751,-391.97737446,0.0003589,7]
[314081051,1707963051760,-500.0,0.0003589,7]
[314081052,1707963051770,-334.83412725,0.0003589,7]
[314081053,1707963051779,-500.0,0.0003589,7]
[314081054,1707963051787,-500.0,0.0003589,7]
[314081055,1707963051796,-500.0,0.0003589,7]
[314081056,1707963051805,-500.0,0.0003589,7]
[314081057,1707963051815,-926.67,0.0003589,7]
[314081058,1707963051824,-500.0,0.0003589,7]
[314081059,1707963051932,-598.15644343,0.0003589,7]
[314081060,1707963051942,-500.0,0.0003589,7]
[314081061,1707963051952,-500.0,0.0003589,7]
[314081062,1707963051961,-1098.7,0.0003589,7]
[314081063,1707963051971,-500.0,0.0003589,7]
[314081064,1707963051980,-500.0,0.0003589,7]
[314081065,1707963051989,-500.0,0.0003589,7]
[314081066,1707963051998,-500.0,0.0003589,7]
[314081067,1707963052007,-500.0,0.0003589,7]
[314081068,1707963052017,-500.0,0.0003589,7]
[314081069,1707963052026,-500.0,0.0003589,7]
[314081070,1707963052035,-500.0,0.0003589,7]
[314081071,1707963052044,-500.0,0.0003589,7]
[314081072,1707963052053,-500.0,0.0003589,7]
[314081073,1707963052062,-500.0,0.0003589,7]
[314081074,1707963052071,-500.0,0.0003589,7]
[314081075,1707963052080,-567.68,0.0003589,7]
[314081076,1707963052090,-2422.19,0.0003589,7]
[314081077,1707963052099,-500.0,0.0003589,7]
[314081078,1707963052109,-500.0,0.0003589,7]
[314081079,1707963052118,-500.0,0.0003589,7]
[314081080,1707963052127,-500.0,0.0003589,7]
[314081081,1707963052137,-500.0,0.0003589,7]
[314081082,1707963052146,-500.0,0.0003589,7]
[314081083,1707963052156,-644.23906857,0.0003589,7]
[314081084,1707963052165,-500.0,0.0003589,7]
[314081085,1707963052174,-500.0,0.0003589,7]
[314081086,1707963052185,-500.0,0.0003589,7]
[314081087,1707963052194,-429.77141477,0.0003589,7]
[314081088,1707963052203,-507.54656674,0.0003589,7]
[314081089,1707963052213,-592.69595017,0.0003589,7]
[314081090,1707963052222,-500.0,0.0003589,7]
[314081091,1707963052231,-500.0,0.0003589,7]
[314081092,1707963052241,-519.59193072,0.0003589,7]
[314081093,1707963052250,-500.0,0.0003589,7]
[314081094,1707963052261,-500.0,0.0003589,7]
[314081095,1707963052271,-521.16182488,0.0003589,7]
[314081096,1707963052280,-500.0,0.0003589,7]
[314081097,1707963052290,-500.0,0.0003589,7]
[314081098,1707963052299,-304.26025245,0.0003589,7]
[314081099,1707963052310,-506.33281032,0.0003589,7]
[314081100,1707963052320,-535.8,0.0003589,7]
[314081101,1707963052332,-500.0,0.0003589,7]
[314081102,1707963052342,-555.87420529,0.0003589,7]
[314081103,1707963052352,-500.0,0.0003589,7]
[314081104,1707963052362,-500.0,0.0003589,7]
[314081105,1707963052371,-500.0,0.0003589,7]
[314081106,1707963052380,-609.62,0.0003589,7]
[314081107,1707963052390,-500.0,0.0003589,7]
[314081108,1707963052399,-500.0,0.0003589,7]
[314081109,1707963052408,-1000.0,0.0003589,7]
[314081110,1707963052418,-500.0,0.0003589,7]
[314081111,1707963052427,-572.41566664,0.0003589,7]
[314081112,1707963052437,-500.0,0.0003589,7]
[314081113,1707963052447,-500.0,0.0003589,7]
[314081114,1707963052456,-500.0,0.0003589,7]
[314081115,1707963052466,-402.53176822,0.0003589,7]
[314081116,1707963052475,-500.0,0.0003589,2]
[314081117,1707963052484,-500.0,0.0003589,7]
[314081118,1707963052493,-500.0,0.0003589,7]
[314081119,1707963052502,-500.0,0.0003589,7]
[314081120,1707963052511,-500.0,0.0003589,7]
[314081121,1707963052522,-421.39134634,0.0003589,7]
[314081122,1707963052531,-500.0,0.0003589,7]
[314081123,1707963052541,-500.0,0.0003589,7]
[314081124,1707963052550,-500.0,0.0003589,7]
[314081125,1707963052559,-500.0,0.0003589,7]
[314081126,1707963052568,-500.0,0.0003589,7]
[314081127,1707963052578,-500.0,0.0003589,7]
[314081128,1707963052587,-500.0,0.0003589,7]
[314081129,1707963052597,-509.68790486,0.0003589,7]
[314081130,1707963052606,-500.0,0.0003589,7]
[314081131,1707963052615,-500.0,0.0003589,7]
[314081132,1707963052624,-331.04903606,0.0003589,7]
[314081133,1707963052633,-500.0,0.0003589,7]
[314081134,1707963052643,-150.0,0.000359,2]
[314081135,1707963052653,-341.512,0.00036109,2]
[314081136,1707963052662,-1043.517,0.00036109,2]
[314081137,1707963052671,-23805.0,0.00036131,7]
[314081138,1707963052681,-501.77500733,0.00036164,7]
[314081139,1707963052691,-257.01845969,0.00036164,7]
[314081140,1707963052701,-294.07564754,0.00036164,7]
[314081141,1707963052710,-366.58325743,0.00036164,7]
[314081142,1707963052719,-285.86970516,0.00036164,7]
[314081143,1707963052728,-189.15742626,0.00036164,7]
[314081144,1707963052737,-500.0,0.00036164,2]
[314081145,1707963052746,-500.0,0.00036164,7]
[314081146,1707963052755,-359.30389226,0.00036164,7]
[314081147,1707963052765,-170.68152518,0.00036164,7]
[314081148,1707963052774,-500.0,0.00036164,7]
[314081149,1707963052783,-188.94007311,0.00036164,7]
[314081150,1707963052792,-527.12384033,0.00036164,7]
[314081151,1707963052801,-560.58531934,0.00036164,7]
[314081152,1707963052810,-278.55914818,0.00036164,7]
[314081153,1707963052819,-500.0,0.00036164,7]
[314081154,1707963052828,-500.0,0.00036164,7]
[314081155,1707963052838,-528.47567377,0.00036164,7]